[Event "FIDE WCCC G12 2018"]
[Site "Santiago de Compostela"]
[Date "2018.11.04"]
[Round "1"]
[White "Petricenco, Ana"]
[Black "Savitha Shri B"]
[Result "0-1"]
[ECO "B00"]
[WhiteElo "1414"]
[BlackElo "1745"]
[Annotator "NA RC"]
[PlyCount "94"]
[EventDate "2018.11.04"]
[EventType "swiss"]
[EventCountry "ESP"]
[SourceTitle "playchess.com"]
[Source "ChessBase"]
[SourceQuality "1"]
[TimeControl "40/5400+30:1800+30"]

1. e4 {[%emt 0:00:00]} b6 {[%emt 0:00:00]} 2. d4 {[%emt 0:00:00]} Bb7 {[%emt 0:00:00]} 3. Nc3 {[%emt 0:00:06]} e6 {[%emt 0:00:00]} 4. Nf3 {[%emt 0:00:56]} Bb4 {[%emt 0:01:32]} 5. Bd3 {[%emt 0:01:40]} Nf6 {[%emt 0:00:09]} 6. Qe2 {[%emt 0:01:55]} d5 {[%emt 0:00:37]} 7. e5 {[%emt 0:01:03]} Ne4 {[%emt 0:00:05]} 8. Bd2 {[%emt 0:08:26]} Bxc3 {[%emt 0:04:08]} 9. Bxc3 {[%emt 0:00:09]} c5 {[%emt 0:03:15]} 10. Bd2 {[%emt 0:09:12]} Nxd2 {[%emt 0:03:23]} 11. Qxd2 {[%emt 0:00:13]} c4 {[%emt 0:07:37]} 12. Be2 {[%emt 0:00:37]} Nc6 {[%emt 0:00:49]} 13. c3 {[%emt 0:00:25]} b5 {[%emt 0:02:10]} 14. O-O {[%emt 0:00:28]} O-O {[%emt 0:08:08]} 15. Bd1 {[%emt 0:02:50]} f6 {[%emt 0:02:28]} 16. exf6 {[%emt 0:01:10]} Qxf6 {[%emt 0:02:16]} 17. Bc2 {[%emt 0:01:21]} e5 {[%emt 0:16:30]} 18. dxe5 {[%emt 0:02:14]} Nxe5 {[%emt 0:00:19]} 19. Nxe5 {[%emt 0:01:03]} Qxe5 {[%emt 0:00:20]} 20. Rae1 {[%emt 0:00:47]} Qd6 {[%emt 0:04:02]} 21. Qg5 {[%emt 0:04:19]} Rf6 {[%emt 0:07:26]} 22. h3 {[%emt 0:06:38]} Raf8 {[%emt 0:06:04]} 23. Re2 {[%emt 0:04:17]} b4 {[%emt 0:04:26]} 24. Rfe1 {[%emt 0:01:49]} h6 {[%emt 0:07:29]} 25. Qh5 {[%emt 0:05:39]} Qb6 {[%emt 0:02:06]} 26. Qh4 {[%emt 0:07:01]} a5 {[%emt 0:04:48]} 27. Qg3 {[%emt 0:06:16]} Bc8 {[%emt 0:00:41]} 28. Rf1 {[%emt 0:02:24]} Qa7 {[%emt 0:01:19]} 29. Qe5 {[%emt 0:04:29]} Qb7 {[%emt 0:03:35]} 30. Rd2 {[%emt 0:04:44]} Be6 {[%emt 0:03:31]} 31. Re2 {[%emt 0:01:18]} Bf7 {[%emt 0:00:30]} 32. Qd4 {[%emt 0:04:51]} Be6 {[%emt 0:03:11]} 33. Qc5 {[%emt 0:03:21]} Qa6 {[%emt 0:01:12]} 34. Rfe1 {[%emt 0:02:22]} Bf7 {[%emt 0:00:31]} 35. cxb4 {[%emt 0:01:43]} axb4 {[%emt 0:00:02]} 36. Qxb4 {[%emt 0:00:23]} d4 {[%emt 0:00:02]} 37. Rd2 {[%emt 0:00:34]} d3 {[%emt 0:01:08]} 38. Bd1 {[%emt 0:00:35]} Bd5 {[%emt 0:01:08]} 39. Qc5 {[%emt 0:02:45]} Qa8 {[%emt 0:00:36]} 40. f3 {[%emt 0:00:00]} Rf5 {[%emt 0:00:00]} 41. Qc7 {[%emt 0:07:01]} Qxa2 {[%emt 0:01:31]} 42. Re7 {[%emt 0:01:59]} Bf7 {[%emt 0:00:58]} 43. Qg3 {[%emt 0:04:18]} c3 {[%emt 0:01:14]} 44. Rxd3 {[%emt 0:03:48]} cxb2 {[%emt 0:00:27]} 45. Rd2 {[%emt 0:03:43]} b1=Q {[%emt 0:01:09]} 46. Rxa2 {[%emt 0:00:08]} Qxd1+ {[%emt 0:00:25]} 47. Kh2 {[%emt 0:00:13]} Rg5 {[%emt 0:00:15]} 0-1

[Event "FIDE WCCC G12 2018"]
[Site "Santiago de Compostela"]
[Date "2018.11.05"]
[Round "2"]
[White "Vicze, Kata"]
[Black "Rueda Nessi, Juana"]
[Result "1-0"]
[ECO "C55"]
[WhiteElo "1828"]
[BlackElo "1642"]
[Annotator "NA RC"]
[PlyCount "71"]
[EventDate "2018.11.04"]
[EventType "swiss"]
[EventCountry "ESP"]
[SourceTitle "playchess.com"]
[Source "ChessBase"]
[SourceQuality "1"]
[TimeControl "40/5400+30:1800+30"]

{[%evp 8,71,1,2,32767,32767,-13,-20,32767,6,6,32767,7,-17,0,32767,32767,32767,32767,0,-4,13,7,4,21,0,36,6,67,0,18,0,51,18,35,-48,-52,-40,3,0,32767,225,224,246,333,348,32767,671,32767,312,32767,32767,847,1040,32767,32767,1037,606,1094,1484,32767,1006,1097,1226,29997,29998]} 1. e4 {[%emt 0:00:00]} e5 {[%emt 0:00:00]} 2. Nf3 {[%emt 0:00:11]} Nc6 {[%emt 0:00:00]} 3. d4 {[%emt 0:01:08]} exd4 {[%emt 0:03:41]} 4. Bc4 {[%emt 0:01:07]} Nf6 {[%emt 0:00:21]} 5. e5 {[%emt 0:00:41]} d5 {[%emt 0:00:21]} 6. Bb5 {[%emt 0:01:08]} Ne4 {[%emt 0:01:21]} 7. Nxd4 {[%emt 0:00:43]} Bd7 {[%emt 0:00:50]} 8. Bxc6 {[%emt 0:01:16]} bxc6 {[%emt 0:00:16]} 9. O-O {[%emt 0:00:45]} Bc5 {[%emt 0:00:38]} 10. Be3 {[%emt 0:01:09]} Bb6 {[%emt 0:00:14]} 11. f3 {[%emt 0:01:52]} Ng5 {[%emt 0:00:29]} 12. f4 {[%emt 0:01:01]} Ne4 {[%emt 0:00:11]} 13. Nd2 {[%emt 0:00:33]} c5 {[%emt 0:01:39]} 14. N4f3 {[%emt 0:02:41]} Nxd2 {[%emt 0:00:38]} 15. Qxd2 {[%emt 0:01:26]} d4 {[%emt 0:00:38] C56: Two Knights: 4 d4 exd4 5 0-0 Nxe4} 16. Bf2 {[%emt 0:01:06]} Bc6 {[%emt 0:01:00]} 17. Bh4 {[%emt 0:04:37]} (17. a4 a5 18. f5 Qd5 19. Qg5 h6 20. Qxg7 O-O-O 21. Qf6 Rhg8 22. Bg3 c4 23. Kh1 {0-1 (38) Jones,G (2661)-L'Ami,E (2618) Wolvega 2014}) 17... Qd5 {[%emt 0:03:30] LiveBook: 6 Games} ({Black should try} 17... Qd7 $11) 18. Rad1 $146 {[%emt 0:10:16]} ({Lieber Predecessor:} 18. f5 $14 Kd7 19. e6+ Kc8 20. exf7 Kb7 21. Qg5 Rhf8 22. a4 a5 23. Rae1 {0-1 (33) Westerberg,J (2412)-Belyakov,B (2456) Pardubice 2014}) 18... O-O {[%emt 0:14:59]} 19. b3 {[%emt 0:08:53]} Bb7 {[%emt 0:16:25]} (19... f6 $11) 20. f5 {[%emt 0:10:13]} Qe4 $1 {[%emt 0:16:20]} 21. Rde1 {[%emt 0:11:55]} (21. Be7 $11) 21... Qxf5 {[%emt 0:10:51]} 22. Nxd4 {[%emt 0:07:11]} Qh5 {[%emt 0:01:15]} 23. Nf5 {[%emt 0:02:55]} Qg4 {[%emt 0:07:11] [#]} 24. Rf4 $1 {[%emt 0:04:41]} c4+ {[%emt 0:00:33]} 25. Kh1 {[%emt 0:06:33]} Qh3 {[%emt 0:00:51]} 26. Ref1 {[%emt 0:02:05]} Ba5 {[%emt 0:03:10]} 27. Qe2 {[%emt 0:00:37]} Bc3 {[%emt 0:01:38]} 28. Bg3 $2 {[%emt 0:05:24]} (28. Rg4 Bxg2+ 29. Rxg2) 28... g5 {[%emt 0:02:44]} 29. Rg4 {[%emt 0:02:59]} Qh5 {[%emt 0:04:15]} 30. Bh4 {[%emt 0:01:43]} Kh8 {[%emt 0:02:42]} 31. Bxg5 {[%emt 0:01:20]} f6 {[%emt 0:01:56]} 32. Bxf6+ {[%emt 0:02:54]} Rxf6 {[%emt 0:00:02]} 33. exf6 {[%emt 0:00:34]} Re8 {[%emt 0:02:13]} 34. Qxc4 {[%emt 0:02:15]} Bxf6 {[%emt 0:03:29] [#]} 35. Ne7 $18 {[%emt 0:01:46]} Bxe7 36. Qd4+ {[%emt 0:00:21]} 1-0

[Event "FIDE WCCC G12 2018"]
[Site "Santiago de Compostela"]
[Date "2018.11.05"]
[Round "2"]
[White "Shuqja, Klean"]
[Black "Alimova, Dana"]
[Result "1-0"]
[ECO "C02"]
[WhiteElo "1798"]
[BlackElo "1628"]
[Annotator "NA"]
[PlyCount "131"]
[EventDate "2018.11.04"]
[EventType "swiss"]
[EventCountry "ESP"]
[SourceTitle "playchess.com"]
[Source "ChessBase"]
[SourceQuality "1"]
[TimeControl "40/5400+30:1800+30"]

1. e4 {[%emt 0:00:00]} e6 {[%emt 0:00:00]} 2. d4 {[%emt 0:00:00]} d5 {[%emt 0:00:00]} 3. e5 {[%emt 0:00:00]} c5 {[%emt 0:00:00]} 4. c3 {[%emt 0:00:00]} Nc6 {[%emt 0:00:06]} 5. Nf3 {[%emt 0:00:00]} Bd7 {[%emt 0:00:09]} 6. a3 {[%emt 0:00:00]} f6 {[%emt 0:00:06]} 7. Bd3 {[%emt 0:03:36]} Qc7 {[%emt 0:07:29]} 8. Bf4 {[%emt 0:10:43]} c4 {[%emt 0:14:59]} 9. Bc2 {[%emt 0:03:09]} O-O-O {[%emt 0:01:50]} 10. O-O {[%emt 0:02:30]} h5 {[%emt 0:18:46]} 11. Bg6 {[%emt 0:09:27]} Nge7 {[%emt 0:06:42]} 12. exf6 {[%emt 0:03:50]} Qxf4 {[%emt 0:00:20]} 13. fxe7 {[%emt 0:00:04]} Bxe7 {[%emt 0:00:33]} 14. Qe2 {[%emt 0:07:58]} Bd6 {[%emt 0:10:36]} 15. Qe3 {[%emt 0:06:24]} Qg4 {[%emt 0:01:56]} 16. Bc2 {[%emt 0:09:10]} Bf4 {[%emt 0:08:06]} 17. Qe1 {[%emt 0:02:47]} h4 {[%emt 0:02:19]} 18. Nbd2 {[%emt 0:05:57]} Qh5 {[%emt 0:06:05]} 19. Ba4 {[%emt 0:08:34]} Qf5 {[%emt 0:07:42]} 20. Qe2 {[%emt 0:04:30]} g5 {[%emt 0:04:02]} 21. Bxc6 {[%emt 0:12:43]} Bxc6 {[%emt 0:00:25]} 22. b3 {[%emt 0:01:31]} g4 {[%emt 0:03:47]} 23. Ne5 {[%emt 0:00:27]} h3 {[%emt 0:04:59]} 24. g3 {[%emt 0:01:52]} Bxd2 {[%emt 0:00:24]} 25. Qxd2 {[%emt 0:00:29]} cxb3 {[%emt 0:00:35]} 26. Qe2 {[%emt 0:02:52]} Kc7 {[%emt 0:00:29]} 27. Qxg4 {[%emt 0:01:02]} Qxg4 {[%emt 0:00:29]} 28. Nxg4 {[%emt 0:00:02]} Bb5 {[%emt 0:00:07]} 29. Rfb1 {[%emt 0:01:10]} Bc4 {[%emt 0:00:39]} 30. Ne5 {[%emt 0:01:24]} Rhf8 {[%emt 0:00:33]} 31. a4 {[%emt 0:01:52]} Rf5 {[%emt 0:00:43]} 32. f4 {[%emt 0:01:08]} Kd6 {[%emt 0:00:25]} 33. Kf2 {[%emt 0:00:43]} Ra8 {[%emt 0:00:34]} 34. a5 {[%emt 0:00:32]} Rff8 {[%emt 0:00:18]} 35. Nf3 {[%emt 0:00:20]} b5 {[%emt 0:00:45]} 36. Nd2 {[%emt 0:00:22]} Rae8 {[%emt 0:00:30]} 37. Ke3 {[%emt 0:00:33]} Rb8 {[%emt 0:00:23]} 38. Nxb3 {[%emt 0:00:20]} b4 {[%emt 0:00:14]} 39. Kd2 {[%emt 0:00:44]} bxc3+ {[%emt 0:00:33]} 40. Kxc3 {[%emt 0:00:00]} Bxb3 {[%emt 0:00:00]} 41. Rxb3 {[%emt 0:00:03]} Rfc8+ {[%emt 0:00:57]} 42. Kb2 {[%emt 0:00:26]} Rxb3+ {[%emt 0:00:53]} 43. Kxb3 {[%emt 0:00:01]} Rb8+ {[%emt 0:00:21]} 44. Kc3 {[%emt 0:01:26]} Rc8+ {[%emt 0:00:38]} 45. Kd3 {[%emt 0:04:36]} Rb8 {[%emt 0:00:11]} 46. Ra2 {[%emt 0:12:46]} Rb1 {[%emt 0:00:50]} 47. Ke3 {[%emt 0:01:00]} Rb3+ {[%emt 0:00:55]} 48. Ke2 {[%emt 0:00:55]} Rb4 {[%emt 0:00:11]} 49. Rd2 {[%emt 0:02:28]} Ra4 {[%emt 0:00:12]} 50. Kf3 {[%emt 0:00:20]} Rxa5 {[%emt 0:00:25]} 51. Kg4 {[%emt 0:00:09]} Ke7 {[%emt 0:00:11]} 52. Kxh3 {[%emt 0:00:22]} Kf6 {[%emt 0:00:07]} 53. Kg4 {[%emt 0:00:09]} Rb5 {[%emt 0:00:50]} 54. h4 {[%emt 0:01:26]} Rb7 {[%emt 0:00:16]} 55. h5 {[%emt 0:02:31]} Rg7+ {[%emt 0:00:51]} 56. Kf3 {[%emt 0:00:21]} Kf5 {[%emt 0:00:45]} 57. h6 {[%emt 0:04:15]} Rh7 {[%emt 0:00:49]} 58. g4+ {[%emt 0:00:07]} Kf6 {[%emt 0:00:17]} 59. g5+ {[%emt 0:00:15]} Kg6 {[%emt 0:01:03]} 60. Re2 {[%emt 0:00:21]} Re7 {[%emt 0:00:14]} 61. Re5 {[%emt 0:00:36]} a5 {[%emt 0:01:09]} 62. Kg4 {[%emt 0:01:18]} a4 {[%emt 0:00:12]} 63. Rxe6+ {[%emt 0:02:49]} Rxe6 {[%emt 0:00:07]} 64. f5+ {[%emt 0:00:00]} Kh7 {[%emt 0:00:09]} 65. fxe6 {[%emt 0:00:03]} a3 {[%emt 0:00:08]} 66. e7 {[%emt 0:00:02]} 1-0

[Event "FIDE WCCC G12 2018"]
[Site "Santiago de Compostela"]
[Date "2018.11.05"]
[Round "2"]
[White "Zvereva, Margarita"]
[Black "Minaeva, Juliana"]
[Result "1-0"]
[ECO "B92"]
[WhiteElo "1787"]
[BlackElo "1608"]
[Annotator "NA RC"]
[PlyCount "85"]
[EventDate "2018.11.04"]
[EventType "swiss"]
[EventCountry "ESP"]
[SourceTitle "playchess.com"]
[Source "ChessBase"]
[SourceQuality "1"]
[TimeControl "40/5400+30:1800+30"]

1. e4 {[%emt 0:00:00]} c5 {[%emt 0:00:00]} 2. Nf3 {[%emt 0:00:00]} d6 {[%emt 0:00:00]} 3. d4 {[%emt 0:00:00]} cxd4 {[%emt 0:00:00]} 4. Nxd4 {[%emt 0:00:00]} Nf6 {[%emt 0:00:05]} 5. Nc3 {[%emt 0:00:01]} a6 {[%emt 0:00:12]} 6. Be2 {[%emt 0:00:25]} e5 {[%emt 0:00:27]} 7. Nb3 {[%emt 0:00:06]} Be7 {[%emt 0:00:38]} 8. Be3 {[%emt 0:00:38]} Be6 {[%emt 0:00:45]} 9. Nd5 {[%emt 0:00:50]} Nxd5 {[%emt 0:00:40]} 10. exd5 {[%emt 0:00:09]} Bf5 {[%emt 0:00:25]} 11. a4 {[%emt 0:03:02]} a5 {[%emt 0:02:40]} 12. O-O {[%emt 0:04:47]} O-O {[%emt 0:01:19]} 13. c4 {[%emt 0:03:01]} Nd7 {[%emt 0:02:04]} 14. Qd2 {[%emt 0:07:01]} Bg6 {[%emt 0:03:21]} 15. Kh1 {[%emt 0:03:40]} f5 {[%emt 0:04:36]} 16. f4 {[%emt 0:01:22]} exf4 {[%emt 0:01:24]} 17. Bxf4 {[%emt 0:00:16]} b6 {[%emt 0:02:39]} 18. Nd4 {[%emt 0:01:19]} Nc5 {[%emt 0:02:52]} 19. Bf3 {[%emt 0:18:29]} Qd7 {[%emt 0:07:27]} 20. Qc2 {[%emt 0:00:51]} Rac8 {[%emt 0:01:57]} 21. Nc6 {[%emt 0:09:45]} Bf6 {[%emt 0:04:39]} 22. Rae1 {[%emt 0:07:18]} Ne4 {[%emt 0:07:13]} 23. Bxe4 {[%emt 0:04:06]} fxe4 {[%emt 0:00:10]} 24. Be3 {[%emt 0:04:47]} Qc7 {[%emt 0:04:20]} 25. Qb3 {[%emt 0:01:31]} Qb7 {[%emt 0:08:02]} 26. Nxa5 {[%emt 0:05:44]} Qa6 {[%emt 0:02:43]} 27. Qxb6 {[%emt 0:05:23]} Qxb6 {[%emt 0:01:25]} 28. Bxb6 {[%emt 0:00:01]} Bxb2 {[%emt 0:00:53]} 29. Nc6 {[%emt 0:01:56]} Rfe8 {[%emt 0:02:24]} 30. h3 {[%emt 0:06:08]} Bc3 {[%emt 0:04:09]} 31. Re2 {[%emt 0:00:52]} Kh8 {[%emt 0:06:19]} 32. a5 {[%emt 0:03:11]} Bf6 {[%emt 0:10:01]} 33. Be3 {[%emt 0:04:28]} Ra8 {[%emt 0:02:35]} 34. Ra2 {[%emt 0:00:42]} h6 {[%emt 0:03:45]} 35. a6 {[%emt 0:02:09]} Bg5 {[%emt 0:03:29]} 36. Re1 {[%emt 0:00:52]} Bh4 {[%emt 0:02:02]} 37. Ree2 {[%emt 0:00:43]} Bf6 {[%emt 0:00:48]} 38. a7 {[%emt 0:01:15]} Rec8 {[%emt 0:01:41]} 39. Rec2 {[%emt 0:01:50]} Be8 {[%emt 0:02:30]} 40. Ra6 {[%emt 0:00:00]} Bxc6 {[%emt 0:00:00]} 41. Rxc6 {[%emt 0:03:36]} Rxc6 {[%emt 0:06:12]} 42. dxc6 {[%emt 0:00:07]} Bd8 {[%emt 0:01:31]} 43. Rb2 {[%emt 0:00:22]} 1-0

[Event "FIDE WCCC G12 2018"]
[Site "Santiago de Compostela"]
[Date "2018.11.05"]
[Round "2"]
[White "Butenandt, Svenja"]
[Black "Lobo Pereira, Arami"]
[Result "1-0"]
[ECO "D85"]
[WhiteElo "1775"]
[BlackElo "1592"]
[Annotator "NA RC"]
[PlyCount "103"]
[EventDate "2018.11.04"]
[EventType "swiss"]
[EventCountry "ESP"]
[SourceTitle "playchess.com"]
[Source "ChessBase"]
[SourceQuality "1"]
[TimeControl "40/5400+30:1800+30"]

1. d4 {[%emt 0:00:00]} Nf6 {[%emt 0:00:00]} 2. c4 {[%emt 0:00:00]} g6 {[%emt 0:00:01]} 3. Nc3 {[%emt 0:00:00]} d5 {[%emt 0:00:38]} 4. cxd5 {[%emt 0:00:00]} Nxd5 {[%emt 0:00:15]} 5. e4 {[%emt 0:00:00]} Nxc3 {[%emt 0:00:19]} 6. bxc3 {[%emt 0:00:00]} Bg7 {[%emt 0:00:21]} 7. Nf3 {[%emt 0:00:02]} c5 {[%emt 0:01:24]} 8. Be3 {[%emt 0:00:13]} Qa5 {[%emt 0:01:46]} 9. Nd2 {[%emt 0:00:41]} O-O {[%emt 0:05:02]} 10. Be2 {[%emt 0:04:14]} Rd8 {[%emt 0:12:39]} 11. O-O {[%emt 0:08:38]} cxd4 {[%emt 0:09:28]} 12. cxd4 {[%emt 0:07:52]} Nc6 {[%emt 0:03:49]} 13. Nb3 {[%emt 0:02:42]} Qb4 {[%emt 0:08:57]} 14. Rb1 {[%emt 0:21:25]} Qa4 {[%emt 0:12:01]} 15. Qd2 {[%emt 0:12:30]} b6 {[%emt 0:06:48]} 16. Rfc1 {[%emt 0:06:54]} Bb7 {[%emt 0:02:31]} 17. Rc4 {[%emt 0:06:08]} Qa3 {[%emt 0:00:38]} 18. Qc2 {[%emt 0:04:18]} Qd6 {[%emt 0:03:13]} 19. d5 {[%emt 0:07:11]} Nb4 {[%emt 0:02:22]} 20. Qd2 {[%emt 0:01:13]} Ba6 {[%emt 0:01:16]} 21. Qxb4 {[%emt 0:10:54]} Qxb4 {[%emt 0:00:50]} 22. Rxb4 {[%emt 0:00:04]} Bxe2 {[%emt 0:00:09]} 23. Nc1 {[%emt 0:00:48]} Bd1 {[%emt 0:02:40]} 24. Nb3 {[%emt 0:01:06]} Bxb3 {[%emt 0:02:03]} 25. R4xb3 {[%emt 0:00:17]} Rdc8 {[%emt 0:00:25]} 26. a4 {[%emt 0:00:51]} Bc3 {[%emt 0:01:50]} 27. Rc1 {[%emt 0:01:16]} Ba5 {[%emt 0:00:33]} 28. Rbb1 {[%emt 0:00:08]} h5 {[%emt 0:02:03]} 29. f3 {[%emt 0:01:07]} f6 {[%emt 0:03:24]} 30. Bf4 {[%emt 0:01:04]} Bc3 {[%emt 0:01:25]} 31. Kf1 {[%emt 0:00:16]} Bd4 {[%emt 0:00:14]} 32. Ke2 {[%emt 0:00:27]} Bc5 {[%emt 0:00:09]} 33. Rc2 {[%emt 0:00:20]} Kf7 {[%emt 0:00:18]} 34. Rbc1 {[%emt 0:00:14]} Ke8 {[%emt 0:00:18]} 35. Be3 {[%emt 0:00:21]} Kd7 {[%emt 0:00:45]} 36. Bxc5 {[%emt 0:00:25]} bxc5 {[%emt 0:00:08]} 37. Rxc5 {[%emt 0:00:03]} Rxc5 {[%emt 0:00:14]} 38. Rxc5 {[%emt 0:00:12]} Kd6 {[%emt 0:00:06]} 39. Rb5 {[%emt 0:00:21]} e6 {[%emt 0:00:42]} 40. Ra5 {[%emt 0:00:00]} a6 {[%emt 0:00:00]} 41. Kd3 {[%emt 0:01:30]} e5 {[%emt 0:01:34]} 42. g3 {[%emt 0:00:48]} g5 {[%emt 0:00:21]} 43. Ke3 {[%emt 0:03:29]} g4 {[%emt 0:03:04]} 44. fxg4 {[%emt 0:02:03]} hxg4 {[%emt 0:00:35]} 45. Kf2 {[%emt 0:01:08]} Ra7 {[%emt 0:00:12]} 46. Kg2 {[%emt 0:00:30]} Ra8 {[%emt 0:00:36]} 47. h3 {[%emt 0:01:00]} gxh3+ {[%emt 0:00:38]} 48. Kxh3 {[%emt 0:00:07]} Kc7 {[%emt 0:00:32]} 49. Rc5+ {[%emt 0:00:28]} Kd6 {[%emt 0:00:08]} 50. Rc6+ {[%emt 0:00:11]} Ke7 {[%emt 0:00:05]} 51. Kg4 {[%emt 0:00:22]} Rg8+ {[%emt 0:00:16]} 52. Kf3 1-0

[Event "FIDE WCCC G12 2018"]
[Site "Santiago de Compostela"]
[Date "2018.11.05"]
[Round "2"]
[White "Sevcikova, Lucia"]
[Black "Cai, Jinru"]
[Result "1-0"]
[ECO "B07"]
[WhiteElo "1768"]
[BlackElo "1578"]
[Annotator "NA"]
[PlyCount "153"]
[EventDate "2018.11.04"]
[EventType "swiss"]
[EventCountry "ESP"]
[SourceTitle "playchess.com"]
[Source "ChessBase"]
[SourceQuality "1"]
[TimeControl "40/5400+30:1800+30"]

1. e4 {[%emt 0:00:00]} d6 {[%emt 0:00:00]} 2. d4 {[%emt 0:00:00]} Nf6 {[%emt 0:00:00]} 3. Nc3 {[%emt 0:00:00]} g6 {[%emt 0:00:00]} 4. Be3 {[%emt 0:00:00]} Bg7 {[%emt 0:00:00]} 5. Qd2 {[%emt 0:00:04]} c6 {[%emt 0:00:18]} 6. Bh6 {[%emt 0:06:06]} O-O {[%emt 0:01:48]} 7. f3 {[%emt 0:01:13]} Qa5 {[%emt 0:01:43]} 8. O-O-O {[%emt 0:02:19]} b5 {[%emt 0:06:15]} 9. Kb1 {[%emt 0:02:13]} Bxh6 {[%emt 0:01:14]} 10. Qxh6 {[%emt 0:02:55]} Be6 {[%emt 0:03:59]} 11. d5 {[%emt 0:04:19]} Bd7 {[%emt 0:04:33]} 12. Qd2 {[%emt 0:03:53]} b4 {[%emt 0:07:07]} 13. Nce2 {[%emt 0:01:08]} cxd5 {[%emt 0:00:22]} 14. exd5 {[%emt 0:00:08]} Na6 {[%emt 0:00:42]} 15. Nc1 {[%emt 0:04:04]} Nc7 {[%emt 0:02:24]} 16. Bc4 {[%emt 0:02:47]} Bb5 {[%emt 0:04:54]} 17. Bb3 {[%emt 0:03:36]} Ba4 {[%emt 0:04:23]} 18. Nge2 {[%emt 0:03:42]} Rab8 {[%emt 0:05:28]} 19. Nf4 {[%emt 0:02:50]} Bxb3 {[%emt 0:04:42]} 20. Nxb3 {[%emt 0:00:08]} Qb5 {[%emt 0:00:42]} 21. Rhe1 {[%emt 0:04:49]} g5 {[%emt 0:05:15]} 22. Rxe7 {[%emt 0:05:46]} Qc4 {[%emt 0:09:54]} 23. Nh3 {[%emt 0:05:15]} h6 {[%emt 0:02:30]} 24. Nf2 {[%emt 0:09:19]} Nfxd5 {[%emt 0:08:00]} 25. Re4 {[%emt 0:00:38]} Qc6 {[%emt 0:00:15]} 26. h4 {[%emt 0:04:46]} f6 {[%emt 0:02:11]} 27. hxg5 {[%emt 0:04:44]} fxg5 {[%emt 0:00:46]} 28. Rh1 {[%emt 0:01:13]} Nf6 {[%emt 0:02:11]} 29. Re7 {[%emt 0:01:36]} Ncd5 {[%emt 0:03:06]} 30. Rxa7 {[%emt 0:03:03]} Qb6 {[%emt 0:00:57]} 31. Ra5 {[%emt 0:02:17]} Kg7 {[%emt 0:01:16]} 32. Qd4 {[%emt 0:01:52]} Qc6 {[%emt 0:02:29]} 33. Ra7+ {[%emt 0:01:20]} Rf7 {[%emt 0:01:34]} 34. Rxf7+ {[%emt 0:00:36]} Kxf7 {[%emt 0:00:04]} 35. Rxh6 {[%emt 0:01:11]} Rc8 {[%emt 0:00:15]} 36. Qd2 {[%emt 0:01:11]} Nf4 {[%emt 0:00:50]} 37. Nd3 {[%emt 0:02:19]} N4h5 {[%emt 0:06:01]} 38. Nxb4 {[%emt 0:03:34]} Qc4 {[%emt 0:00:45]} 39. a3 {[%emt 0:01:20]} d5 {[%emt 0:02:31]} 40. g4 {[%emt 0:00:00]} Nf4 {[%emt 0:00:00]} 41. Qd4 {[%emt 0:08:08]} Qxd4 {[%emt 0:04:14]} 42. Nxd4 {[%emt 0:00:06]} Rc4 {[%emt 0:00:21]} 43. Nf5 {[%emt 0:01:02]} Rc7 {[%emt 0:01:01]} 44. Rh1 {[%emt 0:01:08]} Ng6 {[%emt 0:00:58]} 45. Re1 {[%emt 0:01:31]} Nf4 {[%emt 0:01:35]} 46. a4 {[%emt 0:01:51]} Ra7 {[%emt 0:00:58]} 47. b3 {[%emt 0:00:47]} Rc7 {[%emt 0:00:47]} 48. a5 {[%emt 0:00:50]} Ra7 {[%emt 0:00:45]} 49. a6 {[%emt 0:00:33]} Ne8 {[%emt 0:02:36]} 50. Nd4 {[%emt 0:02:22]} Nd6 {[%emt 0:01:30]} 51. Ndc6 {[%emt 0:01:23]} Ra8 {[%emt 0:00:04]} 52. a7 {[%emt 0:01:52]} Nc8 {[%emt 0:00:12]} 53. Na6 {[%emt 0:00:55]} Ne6 {[%emt 0:00:51]} 54. Nab4 {[%emt 0:02:51]} Nxa7 {[%emt 0:01:41]} 55. Nxa7 {[%emt 0:00:32]} Rxa7 {[%emt 0:00:06]} 56. Nxd5 {[%emt 0:00:18]} Rb7 {[%emt 0:00:32]} 57. Kb2 {[%emt 0:01:02]} Rd7 {[%emt 0:00:41]} 58. c4 {[%emt 0:00:54]} Rb7 {[%emt 0:00:47]} 59. Kc3 {[%emt 0:00:59]} Nc5 {[%emt 0:00:35]} 60. b4 {[%emt 0:02:46]} Ne6 {[%emt 0:00:24]} 61. c5 {[%emt 0:01:03]} Ra7 {[%emt 0:00:28]} 62. Kc4 {[%emt 0:01:03]} Ra2 {[%emt 0:00:50]} 63. Re3 {[%emt 0:00:43]} Rc2+ {[%emt 0:00:41]} 64. Rc3 {[%emt 0:00:33]} Rd2 {[%emt 0:00:10]} 65. Rd3 {[%emt 0:00:20]} Rc2+ {[%emt 0:00:11]} 66. Nc3 {[%emt 0:00:01]} Nf4 {[%emt 0:00:18]} 67. Re3 {[%emt 0:00:59]} Rd2 {[%emt 0:00:22]} 68. b5 {[%emt 0:01:04]} Ne6 {[%emt 0:00:21]} 69. b6 {[%emt 0:00:43]} Rb2 {[%emt 0:00:49]} 70. Ne4 {[%emt 0:01:01]} Rc2+ {[%emt 0:00:14]} 71. Rc3 {[%emt 0:00:16]} Rb2 {[%emt 0:00:11]} 72. Rb3 {[%emt 0:00:24]} Rc2+ {[%emt 0:00:07]} 73. Nc3 {[%emt 0:00:36]} Rd2 {[%emt 0:00:09]} 74. b7 {[%emt 0:00:46]} Rd4+ {[%emt 0:00:03]} 75. Kb5 {[%emt 0:00:20]} Rd8 {[%emt 0:00:13]} 76. Kb6 {[%emt 0:00:26]} Ke7 {[%emt 0:00:39]} 77. c6 1-0